bitfinex/quotes_ETHUSD_20240722
["timestamp","ask_amount","ask_price","bid_price","bid_amount"]
[1721657217572,0.06190219,3476.4,3476.2,2.8767]
[1721657217783,5.4255,3477.1,3476.3,2.87662]
[1721657217944,0.06196875,3476.3,3476.0,2.87683]
[1721657218161,0.35,3476.8,3476.2,2.8767]
[1721657218391,0.35,3476.8,3475.9,2.8769]
[1721657218577,0.06204971,3476.7,3475.6,0.287722]
[1721657218778,0.06204971,3476.7,3476.2,2.87668]
[1721657219084,0.06202258,3476.6,3476.2,2.87668]
[1721657219273,0.35,3476.9,3476.2,2.87665]
[1721657219524,0.06205618,3476.8,3476.4,2.87647]
[1721657219689,0.06205618,3476.8,3476.2,2.87668]
[1721657219933,0.06204196,3476.7,3476.0,5.75361]
[1721657220133,0.35,3477.0,3476.1,2.87677]
[1721657220273,0.27755,3476.9,3476.0,2.87685]
[1721657220478,0.27755,3476.9,3476.1,2.87674]
[1721657220721,0.06206993,3476.8,3475.6,3.164862]
[1721657220878,0.41206993,3476.8,3475.8,2.87697]
[1721657221184,0.41206993,3476.8,3476.0,2.87681]
[1721657221385,0.67358192,3476.8,3476.0,2.87681]
[1721657221640,1.02358192,3476.8,3476.0,2.87681]
[1721657222184,1.02358192,3476.8,3475.8,2.87696]
[1721657222590,1.02358192,3476.8,3476.0,2.87681]
[1721657222793,1.02358192,3476.8,3475.8,2.87696]
[1721657223110,1.02358192,3476.8,3476.0,2.87684]
[1721657223279,0.41206993,3476.8,3476.4,2.87646]
[1721657223479,0.06206993,3476.8,3476.7,5.75258]
[1721657223790,0.06206993,3476.8,3476.1,4.7957]
[1721657223791,2.4479,3477.6,3476.3,2.87658]
[1721657224188,0.06134267,3477.5,3476.9,2.87608]
[1721657224429,0.06134267,3477.5,3477.0,2.87601]
[1721657224625,0.06134267,3477.5,3477.1,2.87594]
[1721657224783,2.4479,3478.0,3477.2,2.87587]
[1721657224982,2.4479,3478.0,3477.3,2.87579]
[1721657224983,0.06123302,3477.4,3477.3,2.87579]
[1721657225180,2.4479,3478.0,3477.1,2.87589]
[1721657225431,0.06107431,3477.4,3477.1,2.87589]
[1721657225582,2.4479,3478.0,3477.2,2.87585]
[1721657226093,0.41115829,3477.9,3477.1,2.87589]
[1721657226292,0.41115829,3477.9,3477.2,2.87585]
[1721657226293,3.41115829,3477.9,3477.2,2.87585]
[1721657226911,3.41115829,3477.9,3476.1,7.67243]
[1721657226912,0.41115829,3477.9,3477.4,2.87564]
[1721657227226,0.06115829,3477.9,3477.7,2.87541]
[1721657227410,2.408,3478.5,3477.7,2.87544]
[1721657227619,2.408,3478.5,3477.9,2.87528]
[1721657227930,2.408,3478.5,3477.4,0.29331521]
[1721657228129,0.2408,3478.4,3477.2,2.87581]
[1721657228332,0.35,3478.3,3477.2,2.87581]
[1721657228483,0.2408,3478.4,3477.6,2.87554]
[1721657228831,3.5908,3478.4,3477.6,2.87554]
[1721657229325,3.0,3478.4,3477.8,2.87531]
[1721657229526,11.08516948,3479.3,3476.9,8.3451]
[1721657229527,2.4734,3479.0,3478.1,2.87507]
[1721657229695,0.35,3478.7,3478.1,2.87507]
[1721657230022,2.4734,3479.0,3478.2,2.87503]
[1721657230223,0.35,3478.8,3478.2,2.87498]
[1721657230442,2.4734,3479.0,3478.3,2.87493]
[1721657231084,2.4734,3479.0,3478.0,2.87519]
[1721657231436,2.4734,3479.0,3478.3,2.87496]
[1721657231636,2.8234,3479.0,3478.3,2.87496]
[1721657231780,3.0,3478.9,3478.3,2.87496]
[1721657231976,2.4734,3479.0,3478.1,2.87505]
[1721657232211,0.24734,3478.9,3478.2,2.87504]
[1721657232421,3.24734,3478.9,3478.2,2.87504]
[1721657232723,3.24734,3478.9,3477.6,2.4413]
[1721657232883,0.06158857,3478.8,3478.2,2.87504]
[1721657233089,0.06158857,3478.8,3478.1,2.8751]
[1721657233090,0.06158857,3478.8,3478.3,2.87496]
[1721657233288,3.24734,3478.9,3478.2,2.87502]
[1721657233690,0.06157988,3478.8,3478.2,2.87502]
[1721657233931,0.06157988,3478.8,3478.4,2.87487]
[1721657234232,0.06157988,3478.8,3477.6,2.4413]
[1721657234233,0.06157988,3478.8,3478.5,2.87474]
[1721657234379,2.4249,3479.4,3478.6,2.87469]
[1721657234582,2.7749,3479.4,3478.7,2.87457]
[1721657234906,2.4249,3479.4,3478.7,2.87457]
[1721657235883,2.4249,3479.4,3478.5,2.8748]
[1721657236208,2.4249,3479.4,3478.2,0.575012]
[1721657236209,2.4249,3479.4,3478.6,2.87468]
[1721657236424,2.4249,3479.4,3478.7,2.87461]
[1721657236603,2.4249,3479.4,3478.7,3.449539]
[1721657237009,2.4249,3479.4,3478.8,2.87455]
[1721657237322,2.4163,3480.0,3479.0,2.87437]
[1721657237541,0.35,3479.8,3479.0,2.87434]
[1721657237837,0.35,3479.8,3478.8,2.8745]
[1721657237982,0.35,3479.8,3478.8,3.449427]
[1721657238185,0.35,3479.8,3478.8,0.574927]
[1721657238441,0.35,3479.8,3478.7,2.87462]
[1721657238583,0.35,3479.8,3478.6,2.87465]
[1721657238785,0.35,3479.8,3478.5,2.87473]
[1721657239030,3.35,3479.8,3478.6,2.87471]
[1721657239243,3.35,3479.8,3478.7,2.87463]
[1721657239417,0.863995,3479.7,3478.7,2.87463]
[1721657239737,0.863995,3479.7,3478.5,2.87474]
[1721657239936,0.863995,3479.7,3478.7,2.87462]
[1721657240227,0.863995,3479.7,3478.6,2.87468]
[1721657240388,0.863995,3479.7,3478.7,2.87459]
[1721657240792,0.4213995,3479.6,3478.5,2.8748]
[1721657241148,0.4213995,3479.6,3478.8,2.87454]
[1721657241292,0.863995,3479.7,3478.9,2.87446]
[1721657241497,3.0,3479.9,3479.0,2.87438]
[1721657241827,0.35,3479.7,3479.0,2.87438]
[1721657242135,0.35,3479.7,3478.7,2.87458]
[1721657242638,0.35,3479.7,3478.8,2.87454]
[1721657242800,0.92663,3479.7,3478.8,2.87454]
[1721657243429,0.92663,3479.7,3478.7,2.87457]
[1721657243599,0.92663,3479.7,3478.7,5.74915]
[1721657243945,0.92663,3479.7,3478.6,2.87467]
[1721657244123,0.92663,3479.7,3478.6,2.87466]
[1721657244301,0.92663,3479.7,3478.7,2.87458]
[1721657244843,0.92663,3479.7,3478.6,3.162176]
[1721657245201,0.92663,3479.7,3478.6,0.287466]
[1721657245629,0.92663,3479.7,3478.9,2.87441]
[1721657245837,0.35,3479.7,3478.9,2.87441]
[1721657246149,0.35,3479.7,3478.4,2.87483]
[1721657246326,3.0,3479.9,3478.4,2.87483]
[1721657246495,0.35,3479.8,3478.9,2.87439]
[1721657246702,0.35,3479.8,3478.8,2.87449]
[1721657246931,1.513983,3479.8,3479.0,2.87438]
[1721657247202,0.35,3479.8,3479.0,2.87438]
[1721657247510,0.35,3479.8,3479.0,2.87433]
[1721657247827,0.35,3479.8,3479.1,2.87426]
[1721657247828,0.05953654,3479.7,3479.1,2.87426]
[1721657248323,2.4163,3480.0,3479.1,2.87425]
[1721657248525,2.4163,3480.0,3478.9,2.87443]
[1721657248526,0.05952662,3479.6,3479.0,2.87434]
[1721657248742,3.0,3479.9,3478.9,2.87443]
[1721657248908,3.0,3479.9,3479.0,2.87436]
[1721657249105,0.35,3479.8,3478.6,2.8747]
[1721657249307,0.40959567,3479.8,3478.6,2.8747]
[1721657249621,3.0,3479.9,3478.4,2.87484]
[1721657249622,2.3415,3479.6,3478.4,2.87484]
[1721657249824,0.35,3479.3,3478.4,2.87484]
[1721657250122,0.35,3479.3,3477.7,2.437]
[1721657250322,0.05942783,3479.2,3478.2,2.87496]
[1721657250545,0.05942783,3479.2,3478.3,2.87491]
[1721657250746,0.40037061,3479.2,3478.3,2.87491]
[1721657251040,0.40037061,3479.2,3477.8,2.87535]
[1721657251199,0.40037061,3479.2,3478.1,2.87509]
[1721657251406,2.4235,3479.1,3477.5,2.2742]
[1721657251639,5.48287948,3479.1,3477.8,2.87531]
[1721657251960,0.35,3478.9,3478.0,2.8752]
[1721657252162,0.35,3478.9,3477.8,2.8753]
[1721657252442,0.05928939,3478.8,3477.7,2.87546]
[1721657252643,0.05928939,3478.8,3477.4,2.87567]
[1721657252802,0.05928939,3478.8,3477.6,2.87549]
[1721657252803,3.05928939,3478.8,3477.6,2.87549]
[1721657253009,0.99071444,3478.7,3477.7,2.8754]
[1721657253253,0.99071444,3478.7,3477.3,2.87578]
[1721657253254,2.87478,3478.6,3477.3,2.87578]
[1721657253551,5.45227738,3478.7,3477.3,2.87578]
[1721657253754,0.35,3478.3,3477.5,2.87561]
[1721657253903,0.35,3478.3,3477.3,5.75152]
[1721657254106,0.05912304,3478.2,3477.3,2.87574]
[1721657254347,0.05912304,3478.2,3477.3,6.326626]
[1721657254583,5.393,3478.7,3477.5,2.8756]
[1721657254709,0.05909252,3478.1,3477.5,2.8756]
[1721657254907,5.393,3478.7,3477.7,2.87541]
[1721657255121,0.05921302,3478.6,3477.9,2.87529]
[1721657255468,3.05921302,3478.6,3477.9,2.87529]
[1721657255741,3.0,3478.5,3477.7,2.87539]
[1721657255948,0.05921302,3478.6,3477.5,2.87558]
[1721657256148,0.40914678,3478.5,3477.5,2.87554]
[1721657256307,0.28021468,3478.4,3477.5,2.87554]
[1721657256508,0.05914678,3478.5,3477.0,2.2545]
[1721657256710,2.393,3478.7,3477.2,2.87583]
[1721657256711,0.05916426,3478.3,3477.2,2.87583]
[1721657256948,0.0591802,3478.4,3477.7,2.87541]
[1721657257206,0.05916341,3478.3,3477.9,2.87525]
[1721657257405,2.393,3478.7,3478.0,2.87516]
[1721657257620,0.05913203,3478.2,3477.8,2.87531]
[1721657257818,3.0,3478.6,3477.8,2.87531]
[1721657258044,0.05911609,3478.1,3477.9,2.87529]
[1721657258220,3.0,3478.6,3477.9,2.87529]
[1721657258420,0.0590993,3478.0,3477.9,2.87529]
[1721657258651,3.0,3478.6,3478.0,2.87518]
[1721657258944,2.393,3478.7,3478.2,2.875]
[1721657259149,2.393,3478.7,3478.3,2.87495]
[1721657259358,5.3674,3479.1,3478.4,2.87483]
[1721657259728,5.3674,3479.1,3477.3,5.469]
[1721657259729,5.7174,3479.1,3478.0,2.8752]
[1721657259931,5.7174,3479.1,3478.1,2.87508]
[1721657260173,0.60583428,3479.0,3478.3,2.87496]
[1721657260342,0.60583428,3479.0,3478.4,2.87488]
[1721657260546,0.60583428,3479.0,3478.2,2.87504]
[1721657260932,0.60583428,3479.0,3478.0,2.87516]
[1721657261472,0.60583428,3479.0,3478.0,2.87518]
[1721657261680,0.66641771,3478.9,3477.8,2.87535]
[1721657261980,2.4255,3478.8,3477.7,2.8754]
[1721657262176,0.35,3478.6,3477.7,2.8754]
[1721657262689,0.35,3478.6,3477.3,2.87575]
[1721657262999,0.05930919,3478.5,3477.5,2.87557]
[1721657263475,0.05930919,3478.5,3477.6,2.87554]
[1721657263883,0.05930919,3478.5,3477.4,0.287575]
[1721657264296,0.40930919,3478.5,3477.5,2.87556]
[1721657264588,0.40930919,3478.5,3477.6,2.87552]
[1721657264794,0.40930919,3478.5,3477.6,5.75102]
[1721657264992,0.40930919,3478.5,3477.6,2.8755]
[1721657265288,0.40930919,3478.5,3477.6,2.87548]
[1721657265653,0.40930919,3478.5,3477.8,2.87532]
[1721657266192,0.40930919,3478.5,3478.0,2.8752]
[1721657266363,0.05930919,3478.5,3478.3,2.87493]
[1721657266571,2.4255,3478.8,3478.1,2.87506]
[1721657266788,0.05712496,3478.4,3478.3,2.87496]
[1721657266969,2.4255,3478.8,3478.3,3.449962]
[1721657267309,7.32,3479.4,3478.3,3.449962]
[1721657267310,2.4201,3479.3,3478.6,2.87471]
[1721657267589,0.35,3479.2,3478.3,3.449902]
[1721657267789,2.4201,3479.3,3478.6,2.8747]
[1721657267952,2.4201,3479.3,3478.3,3.449902]
[1721657267953,2.7701,3479.3,3478.4,2.87481]
[1721657268153,2.7701,3479.3,3478.5,2.87474]
[1721657268566,3.0,3479.2,3478.5,2.87474]
[1721657268764,2.4201,3479.3,3478.4,0.6324712]
[1721657268969,2.4201,3479.3,3478.4,3.5072912]
[1721657268970,2.7701,3479.3,3478.4,3.5072912]
[1721657269193,3.0,3479.2,3478.5,2.87479]
[1721657269417,2.4201,3479.3,3478.5,2.87479]
[1721657269554,2.4201,3479.3,3478.4,3.5073112]
[1721657269909,2.7701,3479.3,3478.5,2.87479]
[1721657270055,2.7701,3479.3,3478.5,0.63821812]
[1721657270257,2.7701,3479.3,3478.6,2.87471]
[1721657270497,3.0,3479.2,3478.4,5.74967]
[1721657270704,3.0,3479.2,3478.5,2.87478]
[1721657270995,2.4201,3479.3,3478.5,2.87478]
[1721657271178,2.4201,3479.3,3478.2,2.875]
[1721657271380,3.05101001,3479.3,3478.2,0.2875]
[1721657271580,3.05101001,3479.3,3478.3,2.87492]
[1721657271581,3.35,3479.2,3478.3,2.87492]
[1721657272798,3.35,3479.2,3478.2,2.87498]
[1721657272967,3.35,3479.2,3478.3,2.87492]
[1721657273173,3.35,3479.2,3478.2,2.87498]
[1721657273404,4.23900013,3479.2,3478.2,2.87498]
[1721657273569,5.23540023,3479.2,3478.4,2.87486]
[1721657273905,3.9964001,3479.2,3478.0,2.87514]
[1721657274119,3.9964001,3479.2,3478.4,2.87483]
[1721657274120,3.0,3479.2,3478.4,2.87483]
[1721657274263,0.88900013,3479.2,3478.2,2.875]
[1721657274599,0.88900013,3479.0,3478.0,2.87516]
[1721657274843,0.88900013,3479.0,3478.2,2.87505]
[1721657275161,1.93477687,3479.1,3478.4,2.87483]
[1721657275162,0.88900013,3479.1,3478.4,2.87483]
[1721657275447,0.88900013,3479.1,3478.6,2.8747]
[1721657275448,3.88900013,3479.1,3478.6,2.8747]
[1721657275651,3.0,3479.1,3478.7,2.87462]
[1721657276152,0.88900013,3479.3,3478.5,0.287483]
[1721657276462,1.24037983,3479.3,3478.4,2.87484]
[1721657276608,1.24037983,3479.3,3478.6,2.87467]
[1721657276609,1.59037983,3479.3,3478.6,2.87467]
[1721657276807,1.23900013,3479.3,3478.5,2.87475]
[1721657277204,0.88900013,3479.1,3478.5,2.87475]
[1721657277748,0.88900013,3479.1,3478.5,2.8748]
[1721657277921,0.05734261,3479.0,3478.5,2.8748]
[1721657278110,0.05734261,3479.0,3478.4,2.87483]
[1721657278457,0.05734261,3479.0,3478.5,2.87476]
[1721657278651,0.88900013,3479.2,3478.5,2.87476]
[1721657278844,0.88900013,3479.2,3477.9,5.13347]
[1721657278845,0.05732582,3478.9,3478.6,2.87471]
[1721657279058,0.88900013,3479.2,3478.6,2.87471]
[1721657279218,0.05730904,3478.8,3478.6,2.87463]
[1721657279546,3.88900013,3479.5,3478.7,3.162053]
[1721657279768,0.88900013,3479.4,3478.8,2.87449]
[1721657280472,0.88900013,3479.3,3478.7,0.287463]
[1721657280673,0.88900013,3479.3,3478.8,2.87449]
[1721657280841,0.88900013,3479.4,3478.8,2.87449]
[1721657281041,0.88900013,3479.4,3478.6,2.87465]
[1721657281277,4.18533351,3479.5,3478.6,2.87465]
[1721657281278,0.88900013,3479.3,3478.6,2.87465]
[1721657281461,0.88900013,3479.3,3478.7,2.87463]
[1721657281628,0.88900013,3479.4,3478.8,2.87452]
[1721657281982,3.88900013,3479.5,3478.8,2.87452]
[1721657282131,3.88900013,3479.5,3478.8,3.44944]
[1721657282338,3.0,3479.5,3479.0,2.87433]
[1721657282761,3.88900013,3479.5,3479.0,2.87433]
[1721657282978,3.0,3479.5,3479.1,2.8743]
[1721657283470,3.88900013,3479.5,3479.0,2.87438]
[1721657283682,3.88900013,3479.5,3478.6,2.87467]
[1721657283882,3.88900013,3479.5,3478.6,3.449631]
[1721657284035,0.88900013,3479.4,3478.8,2.87451]
[1721657284236,0.88900013,3479.4,3478.9,2.87445]
[1721657284435,0.88900013,3479.4,3478.8,2.87451]
[1721657285491,0.88900013,3479.3,3478.7,2.87462]
[1721657285801,0.88900013,3479.2,3478.6,3.449611]
[1721657286089,0.88900013,3479.3,3478.7,2.87462]
[1721657287357,0.88900013,3479.3,3478.6,3.449651]
[1721657287552,0.88900013,3479.3,3478.6,2.87469]
[1721657287751,0.88900013,3479.4,3478.6,2.87469]
[1721657287992,0.88900013,3479.3,3478.6,2.87469]
[1721657288165,0.88900013,3479.3,3478.5,2.8748]
[1721657288373,0.88900013,3479.2,3478.5,2.8748]
[1721657290465,0.88900013,3479.2,3478.5,2.8748]
[1721657290660,0.88900013,3479.2,3478.4,0.287483]
[1721657290963,0.88900013,3479.2,3478.5,2.87479]
[1721657291184,0.88900013,3479.2,3477.9,2.2582]
[1721657291386,0.88900013,3479.2,3478.3,2.87488]
[1721657291596,0.88900013,3479.1,3478.3,2.87488]
[1721657291816,0.88900013,3479.1,3478.5,2.87476]
[1721657291980,0.88900013,3479.1,3478.6,2.87471]
[1721657292670,0.88900013,3479.1,3478.4,5.74967]
[1721657292907,0.05721378,3479.0,3478.4,0.574967]
[1721657293111,0.05721378,3479.0,3478.7,2.87461]
[1721657293283,0.05721378,3479.0,3478.8,2.87453]
[1721657293464,1.18533351,3479.4,3478.9,2.87441]
[1721657293465,0.88900013,3479.3,3478.9,2.87441]
[1721657293669,3.0,3479.5,3479.0,2.87438]
[1721657293670,0.05724741,3479.2,3479.0,2.87438]
[1721657294010,0.05723835,3479.1,3479.0,2.87438]
[1721657294215,3.88900013,3479.5,3479.0,2.87438]
[1721657294412,0.05723835,3479.1,3479.0,2.87438]
[1721657294705,0.88900013,3479.4,3479.0,3.449272]
[1721657294863,0.05725294,3479.1,3479.0,2.87438]
[1721657295067,0.88900013,3479.4,3478.8,2.87448]
[1721657295315,0.05728649,3479.3,3478.9,2.87441]
[1721657295603,0.05728649,3479.3,3479.0,2.87438]
[1721657295796,0.05728649,3479.3,3478.8,2.8745]
[1721657295965,0.94628662,3479.3,3478.8,2.8745]
[1721657296162,0.05728649,3479.3,3479.0,2.87435]
[1721657296408,0.05728649,3479.3,3479.1,2.87428]
[1721657296711,0.05728649,3479.3,3479.2,2.87422]
[1721657297067,0.88900013,3479.5,3479.2,2.87422]
[1721657297268,0.05730413,3479.4,3479.1,2.8743]
[1721657297482,0.05730413,3479.4,3479.2,2.87418]
[1721657297884,0.05730413,3479.4,3479.3,2.87414]
[1721657298512,1.33971687,3479.7,3479.3,2.87414]
[1721657298668,0.05733843,3479.4,3479.3,2.87414]
[1721657299009,0.05733843,3479.4,3478.9,2.87442]
[1721657299314,0.88900013,3479.6,3479.1,2.87427]
[1721657299505,0.05732165,3479.3,3479.1,2.87425]
[1721657299706,0.88900013,3479.5,3478.9,2.87441]
[1721657299935,0.05731687,3479.2,3478.9,2.87441]
[1721657300237,0.05730952,3479.1,3479.0,6.036191]
[1721657300528,0.88900013,3479.6,3479.1,2.87424]
[1721657300941,0.05737664,3479.5,3479.1,2.87424]
[1721657301108,0.94637677,3479.5,3479.1,2.87424]
[1721657301316,0.94637677,3479.5,3478.9,2.87442]
[1721657301522,0.94637677,3479.5,3479.0,2.87437]
[1721657301727,0.94637677,3479.5,3479.0,2.87433]
[1721657302050,0.94637677,3479.5,3479.1,2.8743]
[1721657302250,0.94637677,3479.5,3479.3,2.87412]
[1721657302251,0.05737664,3479.5,3479.3,2.87412]
[1721657302414,0.05737664,3479.5,3479.2,2.87421]
[1721657302735,0.94637677,3479.5,3479.3,2.87411]
[1721657302949,0.94637677,3479.5,3478.6,2.4106]
[1721657302950,0.05737664,3479.5,3479.4,5.7481]
[1721657303093,0.05737664,3479.5,3479.4,2.87405]
[1721657303294,3.88900013,3479.9,3479.4,2.87401]
[1721657303648,0.88900013,3479.8,3479.4,2.874]
[1721657303800,0.88900013,3479.8,3479.5,2.87397]
[1721657303996,0.88900013,3479.9,3479.5,2.87397]
[1721657304310,0.88900013,3479.9,3479.6,2.87385]
[1721657304504,0.88900013,3479.9,3479.4,2.874]
[1721657304724,0.88900013,3479.9,3479.3,2.87409]
[1721657305259,0.88900013,3479.9,3479.4,2.87403]
[1721657305415,0.88900013,3479.9,3479.4,0.574819]
[1721657305607,0.88900013,3479.8,3479.3,2.87409]
[1721657306229,0.88900013,3479.9,3479.4,2.87404]
[1721657306550,0.88900013,3479.9,3479.5,2.87391]
[1721657306846,0.88900013,3480.0,3479.5,2.87395]
[1721657307819,0.05357041,3479.9,3479.6,2.87388]
[1721657308020,0.05357041,3479.9,3479.7,3.44854]
[1721657308222,0.05357041,3479.9,3479.3,2.3868]
[1721657308223,0.88900013,3480.1,3480.0,2.87356]
[1721657308569,0.88900013,3480.6,3479.8,0.05746502]
[1721657308749,0.88900013,3480.9,3480.6,2.87306]
[1721657308922,0.88900013,3481.1,3480.6,2.87306]
[1721657309118,1.18533351,3481.2,3480.6,2.87306]
[1721657309119,0.88900013,3481.2,3480.6,2.87306]
[1721657309321,3.728795,3481.4,3480.6,2.873]
[1721657309549,3.728795,3481.4,3480.2,2.2729]
[1721657309550,0.45069487,3481.4,3480.2,2.2729]
[1721657309718,0.88900013,3481.5,3480.2,2.2729]
[1721657309719,0.88900013,3481.5,3480.8,2.87285]
[1721657309946,0.88900013,3481.5,3480.5,2.8731]
[1721657310157,0.88900013,3481.5,3480.3,2.87327]
[1721657310370,1.18533351,3481.6,3479.9,2.87358]
[1721657310371,0.88900013,3481.1,3479.9,2.87358]
[1721657310575,3.46823349,3481.0,3480.0,2.87356]
[1721657310729,0.88900013,3480.8,3480.0,2.87356]
[1721657310933,0.88900013,3480.8,3479.7,2.4045]
[1721657311232,0.88900013,3481.0,3480.5,2.8731]
[1721657311430,1.18533351,3481.2,3480.5,2.8731]
[1721657311431,0.88900013,3481.1,3480.5,2.8731]
[1721657311658,3.0,3481.2,3480.5,2.87307]
[1721657311876,3.74461336,3481.2,3480.3,2.87323]
[1721657312174,3.74461336,3481.2,3479.9,2.87358]
[1721657312413,3.74461336,3481.2,3479.8,2.87365]
[1721657312414,0.88900013,3480.8,3479.8,2.87365]
[1721657312678,0.88900013,3480.7,3480.0,2.87351]
[1721657312980,0.88900013,3480.8,3480.0,2.87351]
[1721657313166,0.88900013,3480.8,3480.1,2.87342]
[1721657313396,0.88900013,3480.9,3480.1,2.87342]
[1721657313545,0.50743336,3480.8,3480.1,2.87342]
[1721657313887,4.18533351,3481.1,3480.4,2.87318]
[1721657313888,3.0,3481.1,3480.4,2.87318]
[1721657314358,1.63361349,3481.2,3480.4,2.87318]
[1721657314359,4.63361349,3481.2,3480.4,2.87318]
[1721657314555,4.63361349,3481.2,3480.2,5.7467]
[1721657314556,4.98361349,3481.2,3480.2,5.7467]
[1721657314764,0.88900013,3481.1,3480.3,2.87331]
[1721657314976,4.89177829,3481.1,3480.3,2.87331]
[1721657315187,4.89177829,3481.1,3480.3,2.87323]
[1721657315388,1.89177829,3481.1,3480.2,2.87334]
[1721657315693,1.89177829,3481.1,3480.0,2.87348]
[1721657315694,4.23900013,3481.0,3480.0,2.87348]
[1721657315899,4.23900013,3481.0,3480.0,5.74699]
[1721657315900,1.22989118,3481.0,3480.0,5.74699]
[1721657316183,4.22989118,3481.0,3480.0,2.87348]
[1721657316387,4.22989118,3481.0,3480.1,2.87346]
[1721657316592,0.91216695,3480.9,3480.1,2.87346]
[1721657317102,0.88900013,3481.1,3480.4,2.87321]
[1721657317243,0.88900013,3481.1,3479.3,2.87409]
[1721657317244,2.437,3480.5,3478.7,7.90946834]
[1721657317447,0.88900013,3480.1,3478.6,2.3604]
[1721657317687,0.88900013,3479.9,3478.6,2.3604]
[1721657318147,0.35,3479.7,3479.1,2.87422]
[1721657318345,0.35,3479.7,3479.6,2.87389]
[1721657318647,3.0,3480.5,3479.5,2.87391]
[1721657318967,0.04443261,3479.7,3479.2,0.287422]
[1721657319144,0.88900013,3480.5,3479.2,0.287422]
[1721657319145,0.35,3480.4,3479.2,3.161632]
[1721657319498,0.0445538,3480.3,3479.2,3.161632]
[1721657319667,0.35,3480.2,3479.3,3.4777302]
[1721657319902,0.39453703,3480.2,3479.3,3.4777302]
[1721657320043,0.39453703,3480.2,3479.3,0.6036002]
[1721657320446,0.39453703,3480.2,3479.0,2.87437]
[1721657320688,2.4207,3480.1,3478.6,2.3604]
[1721657320893,0.88900013,3480.0,3478.1,9.7264]
[1721657321097,0.88900013,3479.9,3478.6,2.8747]
[1721657321252,0.35,3479.7,3478.7,2.87463]
[1721657321448,0.35,3479.7,3478.8,2.87447]
[1721657321673,1.085586,3479.8,3478.7,2.87463]
[1721657321674,0.04433685,3479.6,3478.7,2.87463]
[1721657321874,1.39130583,3479.8,3478.8,2.87454]
[1721657322089,0.04422238,3479.5,3479.2,2.87421]
[1721657322256,3.0,3479.9,3479.2,0.574859]
[1721657322449,2.4207,3480.1,3479.1,0.05747914]
[1721657322450,0.04410777,3479.4,3479.1,2.93177914]
[1721657322680,5.4207,3480.1,3479.3,2.87414]
[1721657322681,0.35,3480.0,3479.3,2.87414]
[1721657322850,0.04412016,3479.3,3479.1,2.8743]
[1721657323050,3.0,3480.0,3479.1,2.8743]
[1721657323286,0.04437236,3479.2,3479.1,2.8743]
[1721657323470,5.7707,3480.1,3479.1,2.8743]
[1721657323471,6.30970013,3480.1,3479.1,0.574875]
[1721657323687,0.04414213,3479.2,3478.9,2.87445]
[1721657323888,6.65970013,3480.1,3479.0,2.87438]
[1721657324101,6.65970013,3480.1,3478.9,2.87442]
[1721657324102,0.0443435,3479.1,3478.9,2.87442]
[1721657324270,0.88900013,3479.9,3478.8,2.87454]
[1721657324623,0.04432673,3479.0,3478.2,0.757029]
[1721657324945,0.88900013,3479.6,3478.4,2.87488]
[1721657325067,2.4757,3479.4,3478.1,2.4164]
[1721657325271,6.36470013,3479.4,3478.6,2.87471]
[1721657325610,0.39420472,3479.3,3478.7,2.87463]
[1721657325906,0.04420472,3479.3,3479.0,2.87437]
[1721657326107,3.0,3479.7,3479.2,2.87422]
[1721657326306,10.32,3479.8,3479.3,2.87413]
[1721657326537,0.29984586,3480.1,3479.6,2.87382]
[1721657326809,1.23900013,3480.5,3479.6,2.87388]
[1721657327109,8.50533351,3480.7,3479.4,2.87402]
[1721657327110,0.35,3480.6,3479.7,2.8738]
[1721657327334,2.73869549,3480.6,3479.7,2.8738]
[1721657327613,2.73869549,3480.6,3479.4,2.87403]
[1721657327971,3.0,3480.5,3479.4,2.87403]
[1721657328177,3.0,3480.5,3478.8,2.87451]
[1721657328509,0.88900013,3480.2,3478.9,2.87445]
[1721657328707,0.35,3480.0,3478.9,2.87445]
[1721657328870,1.23900013,3480.0,3478.9,2.87445]
[1721657329271,4.23900013,3480.0,3478.9,2.87445]
[1721657329467,4.23900013,3480.0,3478.7,2.87457]
[1721657329703,4.23900013,3480.0,3478.8,2.87454]
[1721657330012,2.4824,3479.6,3478.5,2.87478]
[1721657330313,2.8324,3479.6,3478.4,2.87481]
[1721657330607,3.0,3479.5,3478.5,2.87473]
[1721657330807,4.67967349,3479.5,3478.4,2.87487]
[1721657331409,4.67967349,3479.5,3478.7,2.87462]
[1721657331611,3.0,3479.5,3478.7,2.87457]
[1721657331845,1.7,3479.3,3477.5,2.4419]
[1721657332051,3.32600013,3479.1,3477.9,2.87524]
[1721657332346,0.35,3478.8,3477.9,2.87524]
[1721657332543,0.35,3478.8,3477.9,3.450306]
[1721657332910,0.35,3478.8,3477.6,2.8755]
[1721657333121,2.4249,3478.7,3477.7,2.87546]
[1721657333531,5.4249,3478.7,3477.7,2.87546]
[1721657333749,5.4249,3478.7,3477.0,2.4419]
[1721657333750,0.35,3478.6,3477.0,2.4419]
[1721657333944,3.35,3478.6,3477.2,2.8758]
[1721657334102,4.72237436,3478.6,3477.4,2.87566]
[1721657335165,4.72237436,3478.6,3477.4,2.87565]
[1721657335314,4.72237436,3478.6,3477.5,2.87561]
[1721657336034,4.72237436,3478.6,3477.4,2.87571]
[1721657336359,4.72237436,3478.6,3476.7,2.87625]
[1721657336360,5.31197,3478.3,3476.7,2.87625]
[1721657336645,2.87514,3478.1,3476.9,2.87612]
[1721657336807,0.35,3477.9,3476.7,3.412865]
[1721657337009,0.35,3477.9,3476.7,0.536635]
[1721657337246,0.35,3477.9,3476.9,2.87605]
[1721657337406,0.35,3477.9,3476.8,2.87619]
[1721657337607,0.35,3477.9,3476.0,4.9271]
[1721657337608,2.4621,3477.8,3476.0,4.9271]